[Event "4NCL 2022-2023"]
[Site "Daventry"]
[Date "2023.01.15"]
[Round "4.35"]
[White "Delaney, Killian"]
[Black "Pein, Jonathan"]
[Result "1-0"]
[ECO "A65"]
[WhiteElo "2294"]
[BlackElo "2252"]
[Annotator "TA"]
[PlyCount "65"]
[EventDate "2022.10.20"]
[EventType "team-tourn"]
[EventCountry "ENG"]
[SourceTitle "playchess.com"]
[Source "ChessBase"]
[SourceQuality "1"]
[TimeControl "40/6000+30:2400+30"]

{[%evp 17,65,35,46,8,22,7,0,7,-10,-14,-16,-10,0,9,11,6,26,22,20,11,8,0,0,-18,0,0,60,37,51,0,0,0,0,11,81,64,167,137,107,4,253,214,215,170,183,165,171,165,4878,3018]} 1. c4 {[%emt 0:01:53]} g6 {[%emt 0:03:28]} 2. Nc3 {[%emt 0:01:06]} Bg7 {[%emt 0:00:24]} 3. d4 {[%emt 0:00:12]} Nf6 {[%emt 0:00:51]} 4. e4 {[%emt 0:00:15]} O-O {[%emt 0:00:08]} 5. Nge2 {[%emt 0:01:04]} d6 {[%emt 0:01:26]} 6. Ng3 {[%emt 0:00:11]} c5 {[%emt 0:02:55]} 7. d5 {[%emt 0:00:43]} e6 {[%emt 0:00:43]} 8. Be2 {[%emt 0:01:51]} exd5 {[%emt 0:00:31]} 9. cxd5 $1 {[%emt 0:01:05] The main line 9.cxd5 scores better than 9.exd5.} Re8 {[%emt 0:01:09][%cal Ob7b5]} 10. h4 {[%emt 0:01:07] A65: Modern Benoni: 6 e4.} h5 {[%emt 0:04:41][%cal Ob7b5]} 11. Bg5 {[%emt 0:02:29]} Qa5 {[%emt 0:15:23]} 12. O-O {[%emt 0:04:19] [#] The position is equal.} Nh7 $146 {[%emt 0:07:49]} ({Predecessor:} 12... Ng4 13. Nb5 Qb6 14. a4 c4 15. Bxc4 a6 16. a5 Qc5 17. b4 Qxb4 18. Rb1 Qxb1 19. Qxb1 axb5 20. Bxb5 {1-0 Amgalantengis,E (1878)-Ardenski,D (1410) Kaspersky op U16 blitz 2021 (8)}) 13. Bf4 {[%emt 0:03:42]} Qd8 {[%emt 0:01:16]} 14. Bb5 {[%emt 0:09:57] [#]} Re5 {[%emt 0:08:18][%cal Oa7a6]} 15. Bxe5 {[%emt 0:07:22]} Bxe5 {[%emt 0:00:06]} 16. Nge2 {[%emt 0:00:05]} Qxh4 {[%emt 0:09:48][%csl Ge5][%cal Rh4h2]} 17. f4 {[%emt 0:00:16]} Bg7 {[%emt 0:00:42]} 18. Qe1 {[%emt 0:06:38]} Qe7 {[%emt 0:01:07]} 19. Rd1 {[%emt 0:01:08][%cal Oe4e5]} Bg4 {[%emt 0:10:03]} 20. Rd2 {[%emt 0:02:46][%cal Oe4e5]} Nd7 {[%emt 0:01:49][%cal Bb8d7,Bd7e5,Be5g4][%mdl 32]} 21. e5 {[%emt 0:13:27]} dxe5 {[%emt 0:07:31]} (21... a6 $11 22. Bd3 (22. Bxd7 Qxd7 23. Ne4 dxe5 $11) 22... Nb6) 22. d6 {[%emt 0:00:13]} Qd8 {[%emt 0:01:50]} 23. Qf2 {[%emt 0:02:54]} (23. Nd5 $1 $14) 23... Nhf6 $11 {[%emt 0:04:57]} 24. fxe5 {[%emt 0:00:40]} Nxe5 {[%emt 0:01:33] Threatens to win with ...Bf5.} 25. Qxc5 {[%emt 0:00:18]} Bxe2 {[%emt 0:13:32]} (25... Nfd7 $11 {remains equal.} 26. Qc7 Qg5) 26. Bxe2 $16 {[%emt 0:02:07]} (26. Rxe2 $6 Nfg4 27. g3 Rc8 28. Qxa7 Qxd6 29. Qxb7 Rb8 $11) 26... Nfg4 {[%emt 0:01:40]} (26... Nfd7 $14 27. Qe3 Kh7) 27. Bxg4 $18 {[%emt 0:00:30]} Nxg4 {[%emt 0:00:27]} 28. Rd3 {[%emt 0:00:27]} (28. Ne4 $16 {[%cal Of1f7] And now Rxf7! would win.} Bh6 29. Re2) 28... Be5 $2 {[%emt 0:02:56] Black cannot hold the game after this.} (28... Qh4 29. Rh3 Qd8 30. Ne4 $16) (28... Rc8 $1 $11 29. Qb4 (29. Qxa7 Qh4 $16) (29. Qd5 Qb6+ 30. Kh1 Nf2+ 31. Rxf2 Qxf2 $15) 29... Qd7) 29. d7 {[%emt 0:01:41]} Qh4 {[%emt 0:06:47][%csl Ge5,Gg4][%cal Rh4h2]} 30. Rh3 $36 {[%emt 0:03:28][%mdl 2048] Inhibits Qh2+. White has strong initiative. Active counter play!} Qd8 {[%emt 0:01:03]} 31. Qd5 {[%emt 0:04:09]} Qe7 {[%emt 0:00:31] [#]} 32. Rhf3 $1 {[%emt 0:00:43][%cal Rf3f7]} ({And not} 32. Qxb7 Rd8 33. Kh1 (33. Qxa7 Rxd7 34. Qa8+ Kg7 $17) 33... Rxd7 $17) 32... Bf6 $2 {[%emt 0:00:32]} (32... Nf6 33. Qc4 (33. Qxb7 Rd8 $16) 33... Qxd7) 33. Ne4 {[%emt 0:00:36] Artfully played by Delaney.   Weighted Error Value: White=0.16 (very precise) /Black=0.26 (precise)} ({Weaker is} 33. Qxb7 Bd4+ 34. Kh1 Rd8 $11) 1-0

[Event "4NCL 2022-2023"]
[Site "Daventry"]
[Date "2023.01.15"]
[Round "4.36"]
[White "Pein, Malcolm"]
[Black "Venkatesan, Kavin"]
[Result "1/2-1/2"]
[ECO "D26"]
[WhiteElo "2302"]
[BlackElo "2152"]
[Annotator "TA"]
[PlyCount "94"]
[EventDate "2022.10.20"]
[EventType "team-tourn"]
[EventCountry "ENG"]
[SourceTitle "playchess.com"]
[Source "ChessBase"]
[SourceQuality "1"]
[TimeControl "40/6000+30:2400+30"]

{[%evp 11,94,0,8,0,13,0,-6,-11,-7,-14,-16,-10,-22,-17,0,10,61,31,60,48,54,2,0,0,25,18,15,-10,3,1,8,2,8,14,38,16,247,245,248,248,243,246,241,230,265,266,247,203,264,160,197,197,199,124,257,246,222,114,115,89,89,89,157,8,8,8,8,0,0,0,1,0,3,0,3,0,0,0,14,8,8,8,8,0,3]} 1. d4 {[%emt 0:00:09]} Nf6 {[%emt 0:00:36]} 2. c4 {[%emt 0:00:30]} e6 {[%emt 0:00:06]} 3. Nf3 {[%emt 0:00:28]} d5 {[%emt 0:00:11]} 4. Nc3 {[%emt 0:00:13]} dxc4 {[%emt 0:00:13]} 5. e3 {[%emt 0:01:16]} a6 {[%emt 0:00:37]} 6. Bxc4 {[%emt 0:00:23]} b5 {[%emt 0:00:22]} 7. Be2 {[%emt 0:02:07] D26: Queen's Gambit Accepted: 4 e3 e6 5 Bxc5 c5 sidelines.} Nbd7 {[%emt 0:10:36]} 8. O-O {[%emt 0:03:31]} Bb7 {[%emt 0:02:58] Prevents e4.} 9. b3 {[%emt 0:01:42]} Be7 {[%emt 0:03:24]} 10. Bb2 {[%emt 0:00:14]} O-O {[%emt 0:02:17]} 11. a4 {[%emt 0:20:24]} b4 {[%emt 0:03:25]} 12. Nb1 {[%emt 0:01:49]} a5 {[%emt 0:06:17]} 13. Nbd2 {[%emt 0:00:55] [#]} Nb6 $146 {[%emt 0:03:27]} (13... c5 $11) ({Predecessor:} 13... c5 14. Rc1 Rc8 15. Nc4 Bd5 16. Nfd2 cxd4 17. Bxd4 Rc7 18. f3 Bc5 19. Bxc5 Rxc5 {0-1 Hayrapetyan,H (2499)-Makarian,R (2517) Yerevan Margaryan Memorial-A 2022 (7)}) 14. Rc1 {[%emt 0:03:09]} Rc8 {[%emt 0:02:44]} 15. Ne5 {[%emt 0:04:08]} c5 {[%emt 0:02:27]} 16. Ndc4 {[%emt 0:07:50]} ({White should try} 16. Bf3 $14 Bxf3 17. Qxf3) 16... Nxc4 $11 {[%emt 0:01:51]} 17. Nxc4 {[%emt 0:00:19]} Nd5 {[%emt 0:05:08]} (17... Qd5 $2 18. Bf3 (18. Nxa5 $2 Qxg2#) 18... Ne4 19. Nb6 $18 (19. Nxa5 Ba6 $16)) 18. dxc5 {[%emt 0:06:08]} Bxc5 {[%emt 0:02:15]} 19. Bd3 {[%emt 0:20:45][%cal Oc4a5] [#]} Nc3 $1 {[%emt 0:18:18]} 20. Bxc3 {[%emt 0:01:41]} bxc3 {[%emt 0:00:03]} 21. Rxc3 $40 {[%emt 0:03:47][%mdl 128] White mounts an attack.} Qg5 {[%emt 0:00:38][%csl Gb7][%cal Rg5g2]} 22. e4 {[%emt 0:06:18]} f5 {[%emt 0:12:41]} 23. Qe2 {[%emt 0:03:37]} (23. Nxa5 $2 Bxf2+ 24. Rxf2 Rxc3 $19) 23... Rcd8 $2 {[%emt 0:14:06]} (23... Qf6 $11 {and Black has nothing to worry.} 24. Rcc1 Bb4) 24. Nxa5 $18 {[%emt 0:06:37][%mdl 64] Discovered Attack} Bxe4 {[%emt 0:05:40]} 25. Bxe4 {[%emt 0:01:44]} fxe4 {[%emt 0:00:47] [#]} 26. Rxc5 $1 {[%emt 0:04:22][%mdl 576] Decoy} Qxc5 {[%emt 0:01:35]} 27. Nb7 {[%emt 0:00:05]} Qb6 {[%emt 0:02:09]} 28. Nxd8 {[%emt 0:00:07]} Rxd8 {[%emt 0:00:01][%mdl 4096] Endgame KQR-KQR} 29. Qe3 {[%emt 0:01:46]} ({Don't play} 29. Qxe4 Qxb3 30. a5 Rd1) 29... Qb4 {[%emt 0:00:48]} 30. f3 {[%emt 0:05:37]} Rd3 {[%emt 0:01:10]} 31. Qxe4 {[%emt 0:00:13]} Qxb3 {[%emt 0:00:33]} 32. Re1 {[%emt 0:01:16]} (32. a5 $18) 32... Rd1 {[%emt 0:02:56]} (32... Qb6+ $16 {might work better.} 33. Kh1 Rd4 34. Qa8+ (34. Qxe6+ {gets mated.} Qxe6 35. Rb1 Rxa4 36. Rb8+ Kf7 37. Rb7+ Kg6 38. Rb1 Ra2 39. h4 Qe2 40. Rb6+ Kf5) 34... Kf7) 33. a5 {[%emt 0:02:35]} Rd6 {[%emt 0:03:30]} 34. Qb1 {[%emt 0:00:04]} (34. h4 $18) 34... Qc3 $16 {[%emt 0:01:20]} 35. Qa1 {[%emt 0:01:08]} (35. Qb8+ {with more complications.} Kf7 36. Qa7+ Kg6 37. Re4) 35... Qc5+ {[%emt 0:00:38]} 36. Kh1 {[%emt 0:00:08] And now a6 would win.} Ra6 {[%emt 0:00:18] [#]} (36... Rd2 $142) 37. Qe5 {[%emt 0:00:22]} ({Better is} 37. Re5 $1 $16 {[%cal Re5c5]} Qb4 38. Rg5) 37... Qxa5 $11 {[%emt 0:00:59] The position is equal.} 38. Qb8+ {[%emt 0:00:04]} (38. g4 {simplifies} Qxe5 39. Rxe5 Kf7 40. Kg2) 38... Kf7 {[%emt 0:00:07][%cal Ra5e1]} 39. Qb7+ {[%emt 0:00:24]} Kf6 {[%emt 0:01:01][%cal Ra5e1]} 40. Qb2+ {[%emt 0:00:48]} Kf7 {[%emt 0:00:42][%cal Ra5e1]} ({Much less strong is} 40... e5 41. Rd1 $14) 41. Qb7+ {[%emt 0:41:24]} Kf6 {[%emt 0:41:13][%cal Ra5e1]} 42. Qb2+ {[%emt 0:00:33]} Kf7 {[%emt 0:00:00][%cal Ra5e1]} 43. Rd1 {[%emt 0:00:00]} Ra7 {[%emt 0:00:00]} 44. h3 {[%emt 0:00:00]} Re7 {[%emt 0:00:00]} 45. Qd4 {[%emt 0:00:00]} h6 {[%emt 0:00:00]} 46. Qe4 {[%emt 0:00:00]} Qb5 {[%emt 0:00:00]} 47. Rb1 {[%emt 0:00:00]} Qf5 {[%emt 0:00:00] White really could win this.   Weighted Error Value: White=0.21 (precise) /Black=0.22 (precise)} 1/2-1/2

[Event "4NCL 2022-2023"]
[Site "Daventry"]
[Date "2023.01.15"]
[Round "4.37"]
[White "Freeman, Gordon"]
[Black "Gallana, Marco"]
[Result "0-1"]
[ECO "D34"]
[WhiteElo "2093"]
[BlackElo "2243"]
[Annotator "TA"]
[PlyCount "68"]
[EventDate "2022.10.20"]
[EventType "team-tourn"]
[EventCountry "ENG"]
[SourceTitle "playchess.com"]
[Source "ChessBase"]
[SourceQuality "1"]
[TimeControl "40/6000+30:2400+30"]

{[%evp 22,68,6,6,29,10,20,0,6,0,-7,-27,0,-17,-4,-25,5,-14,-13,-45,0,-32,-11,-65,-59,-186,-208,-247,-251,-205,-221,-210,-175,-175,-164,-366,-356,-492,-485,-770,-737,-707,-702,-857,-864,-1398,-1408,-1345,-1334]} 1. d4 {[%emt 0:00:10]} d5 {[%emt 0:00:24]} 2. Nf3 {[%emt 0:00:35]} e6 {[%emt 0:00:09]} 3. g3 {[%emt 0:00:31]} Nf6 {[%emt 0:00:24]} 4. Bg2 {[%emt 0:00:19]} c5 {[%emt 0:00:20]} 5. c4 {[%emt 0:01:11]} Nc6 {[%emt 0:00:12]} 6. cxd5 {[%emt 0:00:54]} exd5 {[%emt 0:00:12]} 7. O-O {[%emt 0:00:29]} Be7 {[%emt 0:00:14]} 8. b3 {[%emt 0:01:26]} O-O {[%emt 0:05:38]} 9. Bb2 {[%emt 0:05:04]} Ne4 {[%emt 0:01:40]} 10. Nc3 {[%emt 0:08:02]} Bf6 {[%emt 0:10:20]} 11. Nxe4 {[%emt 0:05:21]} dxe4 {[%emt 0:01:34]} 12. Nd2 {[%emt 0:00:49]} cxd4 {[%emt 0:13:13] D34: Tarrasch Defence: 6 g3 Nf6 7 Bg2 Be7.} 13. Nxe4 {[%emt 0:01:29]} Be7 $1 {[%emt 0:00:11]} 14. Rc1 {[%emt 0:11:08]} Qb6 $1 {[%emt 0:00:31] [#] Repels Nc5. The position is equal.} 15. Qc2 $146 {[%emt 0:13:24]} ({Predecessor:} 15. Nd2 Rd8 16. a3 Qb5 17. Nc4 Qh5 18. e4 Bg4 19. f3 Bh3 20. f4 Bg4 21. Bf3 Bxf3 22. Qxf3 Qxf3 23. Rxf3 {1-0 Gausel,E (2500)-Thomas,I (2145) Recklinghausen op 1999 (2)}) 15... Be6 {[%emt 0:02:58]} 16. Qb1 {[%emt 0:05:59]} Rfd8 {[%emt 0:05:12]} (16... Bg4 $5 {[%cal Rg4e2]}) 17. Rfd1 {[%emt 0:03:11]} a5 {[%emt 0:05:29][%cal Ba7a5,Ba5a4,Ba4b3,Bb3a2][%mdl 32]} 18. Nd2 {[%emt 0:08:55]} Qb5 {[%emt 0:06:24]} 19. Nc4 {[%emt 0:09:57]} Bf6 {[%emt 0:18:13]} (19... Bg5 {keeps more tension.} 20. e3 dxe3 21. Nxe3 a4) 20. Be4 {[%emt 0:03:18]} h6 {[%emt 0:02:02]} 21. e3 {[%emt 0:08:14]} (21. Ba3 $5 {[%cal Rc4d6]}) 21... Qh5 {[%emt 0:14:09]} (21... a4 $5 {[%cal Ra4b3]}) 22. Bg2 {[%emt 0:11:41]} (22. Bxd4 $11 Nxd4 23. exd4) 22... a4 $15 {[%emt 0:04:28] Black is more active.} 23. Nb6 {[%emt 0:02:16] This costs White the game.} ({White should play} 23. h4 $15) 23... axb3 $19 {[%emt 0:01:02]} 24. Nxa8 {[%emt 0:01:53][%cal Oa2b3]} (24. Bxc6 $2 bxa2 25. Qa1 bxc6 26. exd4 Rab8 $19) 24... bxa2 {[%emt 0:00:11]} 25. Qe4 {[%emt 0:01:11][%cal Re3d4]} Bf5 {[%emt 0:06:10][%cal Be6f5,Bf5e4,Be4d5][%mdl 32]} (25... Rxa8 26. exd4 Bb3 27. Rd3 $17) 26. Bf3 {[%emt 0:02:31] [#] And now Qxc6 would win.} (26. g4 Bxg4 27. Rf1 (27. f3 $2 Bf5 $19) 27... Be2 28. exd4 Nxd4 29. Bxd4 Bxf1 30. Bxf6 Bxg2 31. Kxg2 gxf6 $19) 26... Bxe4 {[%emt 0:02:35]} ({Much less strong is} 26... Rxa8 27. Qxc6 (27. Bxh5 Bxe4 28. exd4 Ra4 $17) 27... bxc6 28. Bxh5 $16) 27. Bxh5 {[%emt 0:00:05]} Rxa8 {[%emt 0:00:09]} 28. Ba1 $2 {[%emt 0:03:13]} (28. exd4 Ra4 29. Rd2) 28... d3 {[%emt 0:06:13] ...Bxa1 would be deadly.} 29. Bxf6 {[%emt 0:01:01]} gxf6 {[%emt 0:00:07] Black is clearly winning.} 30. Ra1 {[%emt 0:00:31]} (30. f3 $142 Bd5 31. e4) 30... Nb4 {[%emt 0:00:42] White must now prevent ...Nc2.} 31. f3 {[%emt 0:00:31]} Bd5 {[%emt 0:00:19] [#] Threatens to win with ...Bc4.} 32. Kf2 {[%emt 0:00:29]} Nc2 {[%emt 0:00:50]} 33. e4 {[%emt 0:00:08]} Bc4 {[%emt 0:00:48]} 34. f4 {[%emt 0:01:00]} b5 {[%emt 0:01:17] Weighted Error Value: White=0.87/Black=0.08 (flawless)} 0-1

[Event "4NCL 2022-2023"]
[Site "Daventry"]
[Date "2023.01.15"]
[Round "4.38"]
[White "Zulfic, Fedja"]
[Black "Thorarinsson, Pall A."]
[Result "1/2-1/2"]
[ECO "D79"]
[WhiteElo "2145"]
[BlackElo "2172"]
[Annotator "TA"]
[PlyCount "76"]
[EventDate "2022.10.20"]
[EventType "team-tourn"]
[EventCountry "ENG"]
[SourceTitle "playchess.com"]
[Source "ChessBase"]
[SourceQuality "1"]
[TimeControl "40/6000+30:2400+30"]

{[%evp 23,76,0,29,31,27,0,0,0,0,0,0,0,0,0,0,0,0,-272,-271,-270,-215,-268,-272,-370,-371,-630,-625,-522,-93,-405,-406,-378,-412,-404,-390,-393,-335,-533,-340,-971,0,0,0,0,0,-85,-74,-84,-82,-72,0,0,0,-77,0]} 1. d4 {[%emt 0:01:52]} g6 {[%emt 0:01:48]} 2. g3 {[%emt 0:03:47]} Bg7 {[%emt 0:01:36]} 3. Bg2 {[%emt 0:00:05]} c5 {[%emt 0:03:38]} 4. c3 {[%emt 0:04:05]} cxd4 {[%emt 0:02:07]} 5. cxd4 {[%emt 0:00:01]} d5 {[%emt 0:00:41]} 6. Nc3 {[%emt 0:03:36]} Nf6 {[%emt 0:00:13]} 7. Nf3 {[%emt 0:00:50]} O-O {[%emt 0:00:29]} 8. O-O {[%emt 0:02:55]} Nc6 {[%emt 0:00:11]} 9. Ne5 {[%emt 0:11:32]} e6 {[%emt 0:00:15]} 10. Nxc6 {[%emt 0:24:37]} bxc6 {[%emt 0:00:06]} 11. Bf4 {[%emt 0:06:01]} Nh5 {[%emt 0:15:00]} 12. Be3 {[%emt 0:03:16]} Rb8 {[%emt 0:02:14]} 13. Na4 {[%emt 0:02:49] D79: Fianchetto Grünfeld: Symmetrical Variation (6 0-0 c6 7 cxd5 cxd5).} f5 {[%emt 0:05:13]} 14. Qd2 {[%emt 0:10:41]} f4 {[%emt 0:01:49][%mdl 64] Deflection} 15. Bxf4 {[%emt 0:02:49] The position is equal.} Nxf4 {[%emt 0:01:10]} 16. gxf4 {[%emt 0:00:05]} Qh4 {[%emt 0:06:38]} 17. e3 {[%emt 0:01:42] [#]} Rf5 $146 {[%emt 0:16:22]} ({Predecessor:} 17... g5 18. fxg5 e5 19. f4 exd4 20. exd4 Rb7 21. Rac1 Rbf7 22. Nc3 Ba6 23. Ne2 Bxe2 24. Qxe2 Rxf4 25. Rxf4 Qxf4 26. Rxc6 Bxd4+ {1-0 Sekulic,D (2295)-Marinkovic,S (2320) Belgrade-B 1990 (7)}) 18. f3 {[%emt 0:11:22]} Rh5 {[%emt 0:02:08]} 19. h3 {[%emt 0:07:57]} g5 {[%emt 0:11:40]} 20. Nc3 $2 {[%emt 0:04:34][%mdl 8192]} (20. Qa5 $1 $11 {and White has nothing to worry.} gxf4 21. Qc7 (21. Qxa7 Rb7 $17)) 20... gxf4 $1 $19 {[%emt 0:03:06]} 21. exf4 {[%emt 0:00:06]} Bh6 {[%emt 0:00:54][%cal Bg7h6,Bh6f4,Bf4d6][%mdl 32]} 22. Ne2 {[%emt 0:01:14]} Ba6 {[%emt 0:01:37] And now ...Kh8 would win.} 23. Rf2 {[%emt 0:04:39] [#]} Kh8 $1 {[%emt 0:01:10] Hoping for ...Rg8.} 24. Bf1 $2 {[%emt 0:01:23]} (24. Qe3 Rg8 25. Qxe6) 24... Bxe2 {[%emt 0:10:42]} 25. Qxe2 {[%emt 0:00:21]} Qg3+ {[%emt 0:00:23]} (25... Bxf4 $19 {is more deadly.} 26. a4 Bg3 {[%mdl 64] Discovered Attack}) 26. Bg2 $2 {[%emt 0:00:40][%mdl 8192]} (26. Rg2 $17 {was the crucial defense.} Qxf4 27. Rg4) 26... Bxf4 {[%emt 0:04:39]} (26... Qxf4 $2 27. Qxe6 Qxd4 28. Re1 $19) (26... Bg7 $2 27. Rd1 $19) 27. Qxe6 {[%emt 0:00:19]} Rh6 {[%emt 0:00:06] Wards off Qf6+} 28. Qe7 {[%emt 0:00:37]} Bd6 {[%emt 0:07:40]} (28... Rxh3 29. Qf6+ (29. Qxa7 $2 Rh1+ {[%mdl 64] Skewer, Decoy} 30. Kxh1 Qh2#) 29... Kg8 30. Qe6+ (30. Qxc6 $2 Rh1+ {[%mdl 64] Skewer, Decoy} 31. Kxh1 Qh2#) 30... Kg7 31. Qxh3 $18) 29. Qd7 {[%emt 0:00:16]} Rg8 {[%emt 0:04:18]} 30. Kf1 {[%emt 0:00:31]} (30. Re1 {was forced.} Qf4 31. Re8) 30... Rhg6 {[%emt 0:03:46] Threatens to win with ...Qf4.} (30... Qh2 31. Qxc6 Rhg6 32. Qxd5 $17) 31. Re1 $2 {[%emt 0:00:35]} (31. Qf5) 31... Qh2 $2 {[%emt 0:00:43]} (31... Qf4 $19 32. a3 Qxd4) 32. Re8 $1 $11 {[%emt 0:00:17]} Qf4 $40 {[%emt 0:02:02][%mdl 128] Black attacks.} (32... Rxg2 $2 33. Rxg8+ Rxg8 34. Rxh2 Bxh2 35. Qxc6 $18) 33. Rxg8+ $1 {[%emt 0:00:34]} (33. Qxc6 $2 Rxg2 34. Rxg8+ Rxg8 $19) 33... Kxg8 {[%emt 0:00:34]} 34. Re2 {[%emt 0:00:45]} (34. Qxc6 $11 {keeps the balance.} Qxd4 35. Qc8+ Bf8 36. Qc3 Qd1+ 37. Qe1 Qd3+ 38. Qe2 Qb1+ 39. Qe1 Qxa2 40. f4) 34... Qc1+ {[%emt 0:01:22][%mdl 1024] Black has strong compensation.} 35. Re1 {[%emt 0:00:07] [#]} Qc4+ {[%emt 0:00:19]} (35... Qxb2 $6 36. Re8+ Bf8 37. Rxf8+ Kxf8 38. Qd8+ Kg7 39. Qe7+ Kh8 40. Qf8+ Rg8 41. Qf6+ Rg7 42. Qf8+ Rg8 43. Qf6+ Rg7 44. Qf8+ Rg8 $11) 36. Re2 {[%emt 0:00:58]} Qc1+ {[%emt 0:00:23]} (36... Qxa2 37. Re8+ (37. Kf2 $2 Bg3+ 38. Kg1 Qb1+ 39. Bf1 Be5+ $19) 37... Bf8 38. Rxf8+ Kxf8 39. Qd8+ Kg7 40. Qe7+ Kh8 41. Qd8+ (41. Qf8+ Rg8 $11) 41... Rg8 42. Qf6+ Rg7 43. Qf8+ Rg8 44. Qf6+ Rg7 45. Qf8+ Rg8 46. Qf6+ $11) ({Better is} 36... Qxd4 $17 {aiming for ...Qd1+.} 37. Qe8+ Kg7) 37. Re1 {[%emt 0:00:06] Really sharp!} Qc4+ {[%emt 0:00:35]} ({Black should try} 37... Qc2 $11 38. Qe8+ Bf8) 38. Re2 $17 {[%emt 0:00:04]} Qc1+ {[%emt 0:00:26] And White is the lucky defender. An exciting game.   Weighted Error Value: White=0.84/Black=0.49} ({Much worse is} 38... Qxa2 39. Re8+ (39. Kf2 $2 Bg3+ 40. Kg1 Qb1+ 41. Bf1 Be5+ $19 {[%mdl 64] Discovered Attack}) 39... Bf8 40. Rxf8+ Kxf8 41. Qd8+ Kf7 42. Qd7+ Kg8 43. Qd8+ Kf7 44. Qd7+ Kg8 45. Qd8+ Kg7 46. Qe7+ Kh8 47. Qd8+ (47. Qf8+ Rg8 $11) 47... Rg8 48. Qf6+ Rg7 49. Qf8+ Rg8 50. Qf6+ Rg7 51. Qf8+ Rg8 52. Qf6+ $11) (38... Qxd4 39. Qe8+ Kg7 40. h4) (38... Bf8 $17) 1/2-1/2